[Event "15th Tashkent Open Agzamov 2022"]
[Site "Tashkent"]
[Date "2022.05.05"]
[Round "3.5"]
[White "Indjic, Aleksandar"]
[Black "Rakhimzhan, Alen"]
[Result "1-0"]
[ECO "D30"]
[WhiteElo "2621"]
[BlackElo "2248"]
[Annotator "TA"]
[PlyCount "143"]
[EventDate "2022.05.05"]
[EventType "swiss"]
[EventCountry "UZB"]
[SourceTitle "playchess.com"]
[Source "ChessBase"]
[SourceQuality "1"]
[TimeControl "5400+30"]

{[%evp 9,143,16,28,14,17,16,21,0,21,17,15,17,47,42,45,52,52,47,45,46,62,54,47,45,43,46,38,42,57,35,37,29,34,31,33,18,33,27,23,24,31,23,23,17,23,23,23,23,24,24,24,24,31,31,31,31,83,31,31,31,39,14,15,16,18,0,0,0,1119,0,29971,0,0,0,0,0,0,0,0,0,0,0,0,0,0,0,0,0,0,0,0,0,0,0,0,0,0,0,25,0,0,0,0,0,0,0,0,0,12829,12829,12829,0,0,0,12829,0,12829,12825,6514,6598,1079,2637,2166,3380,2379,2177,1766,1749,1616,1576,1299,866,12837,1368,12844,12843]} 1. d4 {[%emt 0:00:27]} d5 {[%emt 0:04:38]} 2. c4 {[%emt 0:00:12]} e6 {[%emt 0:00:06]} 3. Nf3 {[%emt 0:00:16]} a6 {[%emt 0:00:08]} 4. Bg5 {[%emt 0:03:46]} Be7 {[%emt 0:02:57]} 5. Bxe7 {[%emt 0:00:30]} Qxe7 {[%emt 0:00:30]} 6. Nbd2 {[%emt 0:00:07] D30: Queen's Gambit Declined: Systems without Nc3.} Nf6 {[%emt 0:00:36]} 7. Rc1 {[%emt 0:00:09]} O-O {[%emt 0:00:33]} 8. Qc2 $5 {[%emt 0:00:06][%mdl 4] The position is equal. An interesting side line.} c6 {[%emt 0:02:22]} 9. e3 {[%emt 0:03:44]} Nbd7 {[%emt 0:03:02]} 10. Bd3 {[%emt 0:00:14]} e5 {[%emt 0:10:30] And now ...e4 would win.} 11. cxd5 {[%emt 0:00:11]} cxd5 {[%emt 0:00:14] Threatens to win with ...e4.} 12. Nxe5 {[%emt 0:01:40]} Nxe5 {[%emt 0:00:09]} 13. dxe5 {[%emt 0:00:09]} Qxe5 {[%emt 0:00:05]} 14. Nf3 {[%emt 0:00:30] [#] Against d4} Qe7 $146 {[%emt 0:01:53]} ({Predecessor:} 14... Qh5 15. O-O Bh3 16. Qc7 Rac8 17. Qf4 Qg4 18. Qxg4 Bxg4 19. Nd4 Rxc1 20. Rxc1 Rc8 {½-½ (63) Wojtaszek,R (2734)-Bartel,M (2637) Poland 2017}) 15. Nd4 {[%emt 0:06:24]} Be6 {[%emt 0:03:37]} 16. O-O {[%emt 0:04:51]} Rac8 {[%emt 0:02:12] Against Qc7} 17. Qb3 {[%emt 0:00:13]} Rc7 {[%emt 0:03:21]} 18. h3 {[%emt 0:01:01]} Rfc8 {[%emt 0:02:23]} 19. Rcd1 {[%emt 0:00:13]} Nd7 {[%emt 0:02:08][%cal Bf6d7,Bd7c5,Bc5e4][%mdl 32]} 20. Bb1 {[%emt 0:00:36]} Nc5 {[%emt 0:14:32]} 21. Qc2 {[%emt 0:00:38]} Ne4 {[%emt 0:01:19]} 22. Qe2 {[%emt 0:00:08]} Nf6 {[%emt 0:00:29]} (22... Bd7 {keeps more tension.} 23. Qh5 Rc5 24. Nb3 g6) 23. a3 {[%emt 0:02:14]} Bd7 {[%emt 0:02:02]} 24. Qd2 {[%emt 0:05:56]} Ne4 {[%emt 0:03:26]} 25. Bxe4 {[%emt 0:05:18]} dxe4 {[%emt 0:00:10]} 26. Rc1 {[%emt 0:00:06]} Qd6 {[%emt 0:15:46]} 27. Rxc7 {[%emt 0:00:14]} Rxc7 {[%emt 0:00:38]} 28. Rc1 {[%emt 0:00:09]} Rxc1+ {[%emt 0:01:32]} 29. Qxc1 {[%emt 0:00:07]} g6 {[%emt 0:01:27]} 30. Qc2 {[%emt 0:00:35]} Qd5 {[%emt 0:04:01]} 31. Qc7 {[%emt 0:00:11]} Bb5 {[%emt 0:00:50]} 32. b3 {[%emt 0:04:57]} Bd3 {[%emt 0:01:49]} ({Better is} 32... h5 $14) 33. Kh2 {[%emt 0:02:47]} ({White should play} 33. f4 $1 $16 {[%cal Rf4f5]}) 33... h5 $14 {[%emt 0:02:35]} 34. Qe7 {[%emt 0:01:42]} Kg7 {[%emt 0:01:03]} 35. g4 {[%emt 0:04:35]} hxg4 {[%emt 0:03:07]} 36. hxg4 {[%emt 0:00:07]} Kg8 {[%emt 0:02:01]} 37. Kg3 {[%emt 0:00:18]} Qa5 {[%emt 0:05:05]} 38. Kh4 {[%emt 0:04:39]} Qe1 $2 {[%emt 0:02:42][%mdl 8192]} (38... Qd2 $11 39. Qe8+ Kg7 40. Ne6+ fxe6 41. Qe7+ Kg8 42. Qxe6+ Kg7 43. Qd7+ Kg8 44. Qe6+ (44. Kg5 Qc3 $11) 44... Kg7 45. Qe7+ Kg8 46. Qd8+ (46. Kg5 Bb5 $11) 46... Kh7 47. Qe7+ Kg8 48. Qe8+ (48. Kg5 Bb5 $11) 48... Kg7 49. Qe7+ Kg8) 39. Qf6 $2 {[%emt 0:00:14]} (39. Qe8+ $1 $18 Kg7 40. Ne6+ (40. Qe5+ Kh7 $11) 40... Kf6 41. g5+ Ke5 42. Nd4+ Kd5 43. Qd8+ Ke5 44. Qf6+ Kd5 45. Qxf7+ Kd6 46. Qxg6+ Kc7 47. Qf7+ Kb6 48. g6 Qh1+ 49. Kg5 Qg1+ 50. Kf6 Qxf2+ 51. Ke7 Qxe3 52. Ne6) 39... Qc1 $2 {[%emt 0:01:08][%mdl 8192]} (39... Qa5 $11) 40. b4 $2 {[%emt 0:07:21]} (40. Qd8+ $1 {mates} Kh7 41. Kg5 Qe1 42. Qf6 Qa5+ 43. Nf5 $1 gxf5 44. Qxf7+ Kh8 45. Qe8+ Kg7 46. Qe7+ Kh8 47. b4) 40... Qc7 $11 {[%emt 0:02:43]} 41. f4 {[%emt 0:09:06] Hoping for f5.} exf3 $1 {[%emt 0:00:34]} 42. Nxf3 {[%emt 0:00:09]} Bc4 {[%emt 0:00:35]} 43. Kg5 {[%emt 0:08:27]} Kh7 {[%emt 0:00:09]} 44. Kh4 {[%emt 0:07:04]} Kg8 {[%emt 0:00:45]} 45. Qd4 {[%emt 0:01:09]} Be6 {[%emt 0:00:34]} 46. Nd2 {[%emt 0:03:28]} Qh2+ {[%emt 0:00:30]} 47. Kg5 {[%emt 0:00:09]} Qh3 {[%emt 0:01:00]} 48. Qf4 {[%emt 0:02:27]} Kg7 {[%emt 0:00:00][%csl Gg7][%cal Rh3h6]} 49. Qd4+ {[%emt 0:01:02]} Kg8 {[%emt 0:00:05]} 50. a4 {[%emt 0:01:12]} b5 {[%emt 0:00:51]} 51. a5 {[%emt 0:00:15]} Kh7 {[%emt 0:00:29]} 52. Ne4 {[%emt 0:00:23]} Qxg4+ {[%emt 0:00:32]} 53. Kf6 {[%emt 0:00:02] Threatening mate with Ke7.} Qf5+ $1 {[%emt 0:00:29]} 54. Ke7 {[%emt 0:00:02][%mdl 1024] White has compensation. Active counter play!} g5 {[%emt 0:00:30]} 55. Kf8 {[%emt 0:02:58][%csl Gf8][%cal Rd4g7]} Qg6 {[%emt 0:00:24] Prevents Qg7+. ...f5 is the strong threat.} 56. Nf6+ {[%emt 0:07:09]} Kh6 $1 {[%emt 0:00:10]} 57. Qa1 {[%emt 0:02:43]} Qg7+ {[%emt 0:00:56]} 58. Ke7 {[%emt 0:00:02]} Qg6 $2 {[%emt 0:00:30][%mdl 8192]} (58... Kg6 $11 59. Qd4 Bf5) 59. Qh1+ $18 {[%emt 0:00:54]} Kg7 {[%emt 0:00:04]} 60. Nh5+ {[%emt 0:00:28]} Kh7 {[%emt 0:00:26]} (60... Kg8 {is a self mate.} 61. Qa8+) 61. Nf6+ {[%emt 0:01:22][%mdl 64] Discovered Attack (Double check)} Kg7 {[%emt 0:00:04] [#]} 62. Ne8+ $1 {[%emt 0:00:12]} Kg8 {[%emt 0:00:27] [#]} 63. Qa8 $1 {[%emt 0:00:34] White threatens Nf6+ and mate. White is clearly winning.} Bc8 {[%emt 0:01:29]} 64. Qxc8 {[%emt 0:00:12] Intending Nf6+ and mate.} Qe4+ {[%emt 0:00:19]} 65. Kf6 {[%emt 0:02:03] Nd6+ would kill now.} Qf3+ {[%emt 0:00:31]} 66. Qf5 {[%emt 0:00:19]} Qc6+ {[%emt 0:00:28]} 67. Ke7 {[%emt 0:00:08]} Qb7+ {[%emt 0:00:25]} 68. Kd6 {[%emt 0:00:17]} Qb8+ {[%emt 0:00:46]} 69. Nc7 {[%emt 0:00:32]} Qf8+ {[%emt 0:00:35]} 70. Kd7 {[%emt 0:00:18]} Qxb4 {[%emt 0:00:28]} 71. Qxg5+ {[%emt 0:00:06]} Kf8 {[%emt 0:00:14]} 72. Nd5 {[%emt 0:00:14] Weighted Error Value: White=0.32/Black=0.19 (very precise)} 1-0

[Event "15th Tashkent Open Agzamov 2022"]
[Site "Tashkent"]
[Date "2022.05.05"]
[Round "3.6"]
[White "Fayzullaev, Akmal"]
[Black "Bernadskiy, Vitaliy"]
[Result "0-1"]
[ECO "D13"]
[WhiteElo "2417"]
[BlackElo "2636"]
[Annotator "TA"]
[PlyCount "162"]
[EventDate "2022.05.05"]
[EventType "swiss"]
[EventCountry "UZB"]
[SourceTitle "playchess.com"]
[Source "ChessBase"]
[SourceQuality "1"]
[TimeControl "5400+30"]

{[%evp 11,162,8,18,11,15,10,31,0,32,11,33,0,0,0,0,0,0,-13,-13,-14,-11,-13,-6,-57,-52,-43,0,0,0,0,0,0,0,0,0,0,0,0,0,0,0,0,11,0,0,0,0,0,0,0,0,0,0,0,0,0,0,0,0,0,0,0,87,0,0,0,0,-27,-26,-29,-26,-99,-68,-146,-103,-289,-281,-320,-320,-669,-661,-552,-278,-475,-278,-268,-268,-383,-369,-325,-291,-406,-404,-671,-671,-1106,-1018,-1123,-1082,-984,-842,-676,-612,-850,-478,-1506,-1359,-2056,-2056,-5317,-4110,-29942,-29950,-29952,-29955,-29954,-29955,-29952,-29956,-29943,-12839,-29942,-29946,-1344,-8,-29960,-29964,-29963,-29965,-29966,-29966,-29967,-29966,-29966,-29967,-29967,-29967,-29973,-29974,-29973,-29974,-29973,-29974,-29975,-29976,-29976,-29977,-29976,-29977,-29985,-29986,-29986,-29987]} 1. d4 {[%emt 0:00:13]} d5 {[%emt 0:00:35]} 2. Nf3 {[%emt 0:02:18]} Nf6 {[%emt 0:00:39]} 3. c4 {[%emt 0:01:43]} c6 {[%emt 0:00:09]} 4. cxd5 {[%emt 0:00:50]} cxd5 {[%emt 0:00:13]} 5. Nc3 {[%emt 0:00:06]} Nc6 {[%emt 0:01:25]} 6. Bf4 {[%emt 0:00:18]} Nh5 {[%emt 0:00:39]} 7. Bd2 {[%emt 0:01:22] D13: Slav Defence: Exchange variation without ...Bf5.} e6 {[%emt 0:04:42]} 8. e3 {[%emt 0:07:48]} Be7 $5 {[%emt 0:01:33][%mdl 4] 8...Nf6 is setting a new trend. Leaves trodden paths.} 9. Bd3 {[%emt 0:00:05] White is slightly better.} O-O {[%emt 0:07:43]} 10. Rc1 {[%emt 0:00:34]} g6 {[%emt 0:02:33] [#]} 11. Ne5 $146 {[%emt 0:18:14]} ({Predecessor:} 11. a3 Nf6 12. Qa4 Ne4 13. b4 Nxd2 14. Kxd2 {½-½ (14) Dang,H (2341)-Mirzoev,A (2457) Johor 2019}) 11... Nxe5 {[%emt 0:02:47]} 12. dxe5 {[%emt 0:00:02]} d4 {[%emt 0:00:51]} 13. exd4 {[%emt 0:12:16]} Qxd4 {[%emt 0:00:30]} 14. Qe2 {[%emt 0:00:06]} Rd8 {[%emt 0:02:01][%cal Bf8d8,Bd8d4,Bd4e4][%mdl 32]} 15. Bb1 {[%emt 0:04:50]} b6 {[%emt 0:10:52] White should prevent ...Bb7.} 16. Rd1 {[%emt 0:03:47]} Bb7 {[%emt 0:02:31] next ...Qb4 is good for Black.} 17. Be4 {[%emt 0:03:59]} (17. Bc1 $11 Qb4 18. O-O) 17... Bxe4 $1 $15 {[%emt 0:05:30]} 18. Qxe4 {[%emt 0:00:12]} Bb4 {[%emt 0:01:03]} 19. Qxd4 {[%emt 0:03:46]} Rxd4 {[%emt 0:00:28]} 20. g3 $1 {[%emt 0:00:38] Inhibits Nf4.} Ng7 {[%emt 0:03:17][%cal Bh5g7,Bg7f5,Bf5d4][%mdl 32]} 21. Ne2 {[%emt 0:04:19]} Re4 {[%emt 0:05:54]} 22. Bxb4 {[%emt 0:00:13]} Rxb4 {[%emt 0:00:04]} 23. Rd2 {[%emt 0:00:10]} Nf5 {[%emt 0:01:28]} 24. O-O {[%emt 0:10:07]} Rc8 {[%emt 0:00:56]} 25. Nc3 {[%emt 0:03:33]} Nd4 {[%emt 0:04:47] Strongly threatening ...Nf3+.} 26. Kg2 {[%emt 0:01:13] Prevents Nf3.} Nc6 {[%emt 0:04:38]} 27. Re1 {[%emt 0:04:32]} Kg7 {[%emt 0:00:14]} 28. Ree2 {[%emt 0:04:38]} g5 {[%emt 0:05:13]} 29. a3 {[%emt 0:03:06]} Rb3 {[%emt 0:01:41]} 30. Rd7 {[%emt 0:02:23]} a6 {[%emt 0:03:08]} 31. f4 {[%emt 0:01:45]} gxf4 {[%emt 0:00:17]} 32. gxf4 {[%emt 0:00:01]} Rd8 {[%emt 0:00:10]} 33. Rxd8 {[%emt 0:03:29]} Nxd8 $11 {[%emt 0:00:04][%mdl 4096] Endgame KRN-KRN} 34. Kf3 {[%emt 0:00:03]} Nc6 {[%emt 0:01:58] White must now prevent ...Nd4+.} 35. Rg2+ {[%emt 0:00:04]} Kf8 {[%emt 0:00:18]} 36. Ke4 {[%emt 0:02:38]} Ne7 {[%emt 0:00:02]} (36... b5 $11) 37. Rf2 {[%emt 0:01:18]} (37. Rd2 $16) 37... b5 {[%emt 0:02:12]} 38. Kd4 {[%emt 0:01:45]} Nf5+ {[%emt 0:04:20]} 39. Kd3 {[%emt 0:00:38]} a5 {[%emt 0:01:47][%cal Ba6a5,Ba5a4,Ba4a3,Ba3b2][%mdl 32]} 40. Kc2 $1 {[%emt 0:00:41]} a4 {[%emt 0:00:02]} 41. Kd3 {[%emt 0:00:36]} (41. Ne4 $11 {remains equal.}) 41... h5 {[%emt 0:00:06] Black converts the advantage convincingly.} 42. Rd2 {[%emt 0:00:05]} (42. Kc2 $15) 42... h4 {[%emt 0:00:43] Black is more active.} (42... b4 43. axb4 Rxb4 44. Rf2 $17) 43. Ke4 $2 {[%emt 0:00:53]} (43. Ke2 $17) 43... b4 $19 {[%emt 0:00:33]} 44. axb4 {[%emt 0:00:01]} a3 $1 {[%emt 0:02:22]} (44... Rxb4+ 45. Kf3 $17) 45. Kd3 $2 {[%emt 0:01:07]} ({But not} 45. Rd8+ Ke7 46. Rd1 (46. Rb8 {gets mated.} axb2 47. Nd5+ exd5+ 48. Kxd5 b1=Q 49. Rb7+ Kd8 50. Rxf7 Rxb4 51. Rf8+ Ke7) 46... Rxb4+ 47. Kd3 Rxf4 48. bxa3 Rf3+ 49. Kd2 Rf2+ 50. Ke1 Rxh2 $19) (45. bxa3 Rxc3 46. Rd8+ Kg7 47. Rd3) 45... axb2 {[%emt 0:00:39]} 46. Rd1 {[%emt 0:00:01]} Rxb4 {[%emt 0:00:15]} 47. Rf1 $2 {[%emt 0:00:03]} (47. Rb1) 47... Rd4+ {[%emt 0:01:01]} (47... Rb3 $142 {[%cal Of5e3] Threatens to win with ...Ne3!} 48. Kc4 Rb8) 48. Ke2 {[%emt 0:00:00]} Ne7 {[%emt 0:01:19]} 49. Ke3 {[%emt 0:01:12]} (49. Rb1 $142) 49... Rb4 {[%emt 0:01:01]} 50. Rb1 {[%emt 0:00:01]} Ng6 {[%emt 0:02:54]} 51. Ne2 {[%emt 0:00:17]} Kg7 {[%emt 0:00:52]} 52. Kd3 {[%emt 0:01:13]} (52. Nc3 $142) 52... Nxf4+ {[%emt 0:02:30]} 53. Nxf4 {[%emt 0:00:05]} Rxf4 {[%emt 0:00:03]} 54. Rxb2 {[%emt 0:00:06] KR-KR} Kg6 {[%emt 0:00:04]} 55. Ke3 {[%emt 0:00:31]} Kf5 {[%emt 0:00:13]} 56. Rb7 {[%emt 0:00:39]} Kg4 {[%emt 0:00:06] ...Rf3+ is the strong threat.} 57. Rb8 {[%emt 0:01:52]} Rf5 {[%emt 0:00:45]} ({Not} 57... Kf5 58. Rb7 Kg4 59. Rb2 $19) 58. Ke4 {[%emt 0:00:10]} (58. Rb4+ $142 Kg5 59. Re4) 58... Rf2 {[%emt 0:00:14] Hoping for ...Re2+.} 59. Ke3 {[%emt 0:00:50] Prevents Re2+.} Rxh2 {[%emt 0:00:57]} 60. Rf8 {[%emt 0:00:13]} Kf5 {[%emt 0:01:48]} 61. Rxf7+ {[%emt 0:00:04]} Kxe5 {[%emt 0:00:06]} 62. Rh7 {[%emt 0:00:31]} Rh3+ {[%emt 0:00:09]} 63. Kf2 {[%emt 0:00:01]} Ke4 {[%emt 0:00:08]} 64. Kg2 {[%emt 0:00:44]} Rg3+ {[%emt 0:00:04]} 65. Kf2 {[%emt 0:00:55]} Rg4 {[%emt 0:00:18]} (65... Rf3+ $142 66. Ke2 Re3+ 67. Kf2 h3 68. Rh6 Kd4 69. Rh5 e5 70. Rh8 Rd3 71. Rd8+ Kc3 72. Rh8 Kd4 73. Rd8+ Kc3 74. Rc8+ Kd2 75. Re8 h2 76. Kg2 Rh3 $3 {[%mdl 512]} 77. Kh1 Rh5 78. Re7 Ke2 79. Re6 Ke3 80. Re7 e4 81. Ra7 Kf4 82. Rf7+ Ke5 83. Ra7 Rh3 84. Re7+ Kd4 85. Rd7+ Kc3 86. Ra7 e3 87. Ra2 Kd3 88. Ra3+ Ke2 89. Ra2+ Kf1 90. Ra1+ Kf2 91. Rf1+ Ke2 92. Rb1 Kf3 93. Rf1+ Ke4 94. Re1 Kf3 95. Rf1+ Ke2 96. Ra1 Kf2 97. Rf1+ Ke2) 66. Rh8 {[%emt 0:00:57]} e5 {[%emt 0:00:05]} 67. Ra8 {[%emt 0:00:19]} h3 $2 {[%emt 0:00:53]} (67... Kf5 $19 {( -> ...h3)} 68. Rh8 Rf4+ 69. Ke3 Kg4 70. Rg8+ Kh3) 68. Rh8 $2 {[%emt 0:00:06][%mdl 8192]} (68. Ra3 $11) 68... Rg2+ {[%emt 0:00:09] Black mates.} 69. Kf1 {[%emt 0:00:03] [#]} Rg3 $1 {[%emt 0:00:05]} 70. Kf2 {[%emt 0:00:09]} Ra3 {[%emt 0:00:27]} 71. Rh4+ {[%emt 0:00:25]} Kf5 {[%emt 0:00:20]} 72. Rh5+ {[%emt 0:00:39]} Kf4 {[%emt 0:00:07]} 73. Rh4+ {[%emt 0:00:03]} Kg5 {[%emt 0:00:04]} 74. Re4 {[%emt 0:01:00]} Kf5 {[%emt 0:00:32]} 75. Rh4 {[%emt 0:00:01]} e4 {[%emt 0:00:13]} 76. Rh8 {[%emt 0:01:20]} Rf3+ {[%emt 0:00:05]} 77. Ke2 {[%emt 0:00:09]} Kf4 {[%emt 0:01:32]} 78. Rf8+ {[%emt 0:00:51]} Kg3 {[%emt 0:00:04]} 79. Rg8+ {[%emt 0:00:03]} Kh2 {[%emt 0:00:05]} 80. Re8 {[%emt 0:01:49]} Kg2 {[%emt 0:00:19]} 81. Rg8+ {[%emt 0:00:41]} Rg3 {[%emt 0:00:11] Weighted Error Value: White=0.71/Black=0.29 (precise)} 0-1

[Event "15th Tashkent Open Agzamov 2022"]
[Site "Tashkent"]
[Date "2022.05.05"]
[Round "3.7"]
[White "Urazayev, Arystanbek"]
[Black "Mchedlishvili, Mikheil"]
[Result "0-1"]
[ECO "E73"]
[WhiteElo "2445"]
[BlackElo "2595"]
[Annotator "TA"]
[PlyCount "130"]
[EventDate "2022.05.05"]
[EventType "swiss"]
[EventCountry "UZB"]
[SourceTitle "playchess.com"]
[Source "ChessBase"]
[SourceQuality "1"]
[TimeControl "5400+30"]

{[%evp 14,130,12,12,33,15,16,-10,0,0,0,-11,0,0,0,0,2,-18,-5,-8,14,-12,0,-38,0,-53,-49,-92,-110,-77,-16,0,0,0,0,0,14,-50,0,0,0,0,0,0,0,0,0,0,0,0,0,0,0,0,0,0,3,0,0,0,0,-10,-5,-25,0,-4,0,0,0,-31,-11,-12,-12,-87,-85,-143,-139,-158,-71,-200,-134,-159,0,-175,-190,-212,-209,-216,-201,-322,-300,-481,-317,-389,-394,-527,-521,-531,-468,-701,-687,-2206,-1541,-29976,-29977,-29974,-29968,-29970,-29970,-29973,-3192,-29968,-29969,-29973,-29974,-29973,-7345,-29979,-29980]} 1. d4 {[%emt 0:00:15]} Nf6 {[%emt 0:00:24]} 2. c4 {[%emt 0:00:10]} g6 {[%emt 0:00:32]} 3. Nc3 {[%emt 0:00:43]} Bg7 {[%emt 0:00:37]} 4. e4 {[%emt 0:00:43]} d6 {[%emt 0:00:21]} 5. Be2 {[%emt 0:01:38]} O-O {[%emt 0:00:44]} 6. h4 {[%emt 0:00:41][%cal Bh2h4,Bh4h5,Bh5h6][%mdl 32]} c5 {[%emt 0:03:47] 6...c5 is better than 6...h5.} 7. d5 {[%emt 0:00:04]} e6 {[%emt 0:03:53]} 8. h5 {[%emt 0:00:55]} Re8 $5 {[%emt 0:02:26][%mdl 4] A promising side line. E73: King's Indian: Averbakh Variation without 6...c5.} 9. h6 {[%emt 0:01:14]} Bh8 {[%emt 0:01:02]} 10. Bg5 {[%emt 0:00:47]} exd5 {[%emt 0:01:49] The position is equal.} 11. exd5 {[%emt 0:00:07]} (11. cxd5 Nbd7 $14) 11... Qb6 {[%emt 0:04:53]} 12. b3 {[%emt 0:00:23]} Ne4 {[%emt 0:04:31]} 13. Nxe4 {[%emt 0:00:10]} Rxe4 {[%emt 0:00:07]} 14. Kf1 {[%emt 0:01:37]} Re8 {[%emt 0:01:21]} 15. Rh4 {[%emt 0:09:42][%cal Oe2d3]} Nd7 {[%emt 0:05:04]} 16. Rc1 {[%emt 0:01:55] [#]} f5 $146 {[%emt 0:09:17][%cal Bf7f5,Bf5f4][%mdl 32]} ({Predecessor:} 16... Ne5 17. g3 a6 18. Kg2 Qa5 19. a4 Bf5 20. Nh3 Bxh3+ 21. Rxh3 Nd7 22. Bd3 Qb6 {1-0 (30) Grischuk,A (2759)-Gelfand,B (2686) Amsterdam 2019}) 17. Bd2 {[%emt 0:14:31]} Qd8 {[%emt 0:01:28]} 18. Rh3 {[%emt 0:07:07]} Nf6 {[%emt 0:04:06]} 19. Bc3 {[%emt 0:02:46]} (19. Bg5 $11) 19... f4 $15 {[%emt 0:04:05] Hoping for ...Ne4.} 20. Qc2 {[%emt 0:17:18][%cal Oe2d3]} Bxh3 {[%emt 0:19:16]} 21. Nxh3 {[%emt 0:00:04]} Qe7 {[%emt 0:04:55]} ({Better is} 21... Ne4 $17 22. Bxh8 Kxh8) 22. Qb2 {[%emt 0:08:45]} (22. Nxf4 Ne4 23. Bxh8 Qh4 $17) 22... Qf8 {[%emt 0:04:24][%cal Of8h6]} 23. Bf3 {[%emt 0:03:26]} Re7 {[%emt 0:02:33]} 24. Kg1 {[%emt 0:04:26]} Rae8 {[%emt 0:00:36]} 25. Qa1 {[%emt 0:09:00] [#]} ({Much worse is} 25. Nxf4 Ne4 $1 26. Ne6 Rxe6 27. dxe6 (27. Bxh8 $2 R6e7 $19) 27... Nxc3 28. Rxc3 Re7 $17) (25. Rf1 $11) 25... Rf7 {[%emt 0:06:06]} (25... Re5 $1 $15) 26. Ng5 $11 {[%emt 0:00:45]} Qxh6 {[%emt 0:01:42]} 27. Nxf7 {[%emt 0:00:08]} Kxf7 {[%emt 0:00:04]} 28. Re1 {[%emt 0:01:22] Threatens to win with Rxe8.} Qf8 {[%emt 0:01:28]} 29. Re6 {[%emt 0:00:27]} Rxe6 {[%emt 0:05:05]} 30. dxe6+ {[%emt 0:00:03][%mdl 64] Discovered Attack} Kxe6 {[%emt 0:02:01]} 31. Bxb7 {[%emt 0:00:11]} Bg7 {[%emt 0:01:45]} 32. Bd5+ {[%emt 0:08:36]} Kd7 {[%emt 0:00:19]} 33. Bf3 {[%emt 0:00:04] A strong pair of Bishops.} Ne8 {[%emt 0:02:46]} 34. Bg4+ {[%emt 0:02:02]} Kc6 {[%emt 0:00:18]} 35. Qe1 {[%emt 0:01:57] Threatening mate with Qe4+.} Bxc3 {[%emt 0:00:49]} 36. Qxc3 {[%emt 0:00:36] Strongly threatening Qf3+.} Nf6 {[%emt 0:01:04]} 37. Bf3+ {[%emt 0:02:45]} Kd7 {[%emt 0:00:25][%cal Bc6d7,Bd7e6,Be6f5,Bf5g5][%mdl 32]} 38. b4 {[%emt 0:00:02]} cxb4 {[%emt 0:00:57]} 39. Qxb4 {[%emt 0:00:04]} Qe7 {[%emt 0:00:18]} 40. a4 {[%emt 0:01:49]} Ke6 {[%emt 0:00:49]} 41. a5 {[%emt 0:00:55][%cal Oc4c5]} Qc7 {[%emt 0:00:23]} 42. a6 {[%emt 0:00:25]} Kf5 {[%emt 0:01:01]} 43. Bb7 {[%emt 0:00:46]} (43. Qb1+ $11 Kg5 44. Qb4) 43... Qc5 $17 {[%emt 0:00:41]} 44. Qb1+ {[%emt 0:00:25]} (44. Qb5 $142) 44... Kg5 {[%emt 0:00:07]} 45. Qd3 {[%emt 0:00:34]} Ng4 {[%emt 0:00:24]} (45... Qe5 $142 {aiming for ...Qa1+.} 46. Bf3 h5) 46. Qe2 {[%emt 0:00:20]} (46. Qd2 $17 {is the only way for White.}) 46... Qe5 {[%emt 0:01:01]} 47. Qd1 {[%emt 0:00:20]} Qc5 {[%emt 0:00:15]} 48. Qe2 {[%emt 0:00:13]} Ne5 {[%emt 0:00:21]} 49. Bd5 {[%emt 0:00:59]} Qd4 {[%emt 0:00:49] Against Qd2} 50. Qe1 {[%emt 0:00:21]} h5 {[%emt 0:00:31]} 51. Be6 {[%emt 0:00:47]} (51. Kh2 $142) 51... Kf6 $19 {[%emt 0:00:49]} ({Stronger than} 51... Nxc4 52. Bxc4 Qxc4 53. Qe7+ Kh6 54. Qxa7 Qc1+ 55. Kh2 $11) 52. Bh3 {[%emt 0:00:24]} (52. Bd5 {was necessary.}) 52... Qxc4 {[%emt 0:00:51]} 53. Qa5 {[%emt 0:00:07]} Ke7 {[%emt 0:00:27] Against Qd8+} 54. Qa1 {[%emt 0:00:31]} g5 {[%emt 0:00:34][%cal Bg6g5,Bg5g4,Bg4g3][%mdl 32] White must now prevent ...g4.} 55. Bf5 {[%emt 0:00:43]} g4 {[%emt 0:00:29]} 56. Kh1 {[%emt 0:00:46]} (56. Qf1 $142 Qxf1+ 57. Kxf1) 56... g3 {[%emt 0:00:20]} 57. f3 {[%emt 0:00:25]} Kf6 {[%emt 0:00:16] Prevents Bg6.} 58. Qb1 {[%emt 0:00:16]} Qxa6 {[%emt 0:00:35]} 59. Bh7 {[%emt 0:00:28]} Ke7 {[%emt 0:00:28]} 60. Qc1 {[%emt 0:00:32]} Qc4 {[%emt 0:00:10][%cal Rc4c1]} 61. Qb1 {[%emt 0:00:26]} Qc6 {[%emt 0:00:46]} (61... a5 $142 62. Qb7+ Kf6 63. Qb1 a4 64. Qa1 Ke7 65. Qg1 a3 66. Be4 a2 67. Qa1 Kf7 68. Bb7 Kf6 69. Be4 d5 70. Bh7 d4 71. Qg1 Qc3 72. Be4 a1=Q 73. Bb1 Qb4 74. Bd3 Qxg1+ 75. Kxg1 Nxd3 76. Kh1 Qe1#) 62. Be4 {[%emt 0:00:24]} Qb6 {[%emt 0:00:21]} 63. Qc1 {[%emt 0:00:26]} Qe3 {[%emt 0:00:16][%cal Re3c1]} 64. Qb1 {[%emt 0:00:36]} a5 {[%emt 0:00:17]} (64... h4 $142 65. Bd5 Qd2 66. Bb7 h3 67. Qg1 a5 68. gxh3 a4 69. Qg2 Qc1+ 70. Qg1 Qb2 71. Bd5 a3 72. h4 Qd2 73. Bg8 a2 74. Bxa2 Qxa2 75. Qg2 Qb1+ 76. Qg1 Qd3 77. Qa7+ Kf6 78. Qg1 Nxf3 79. Qc1 g2+ 80. Kxg2 Qe2+ 81. Kh3 Qh2+ 82. Kg4 Qg3+ 83. Kh5 Qxh4#) 65. Bc2 {[%emt 0:00:57]} h4 {[%emt 0:00:17] Weighted Error Value: White=0.52/Black=0.21 (precise)} 0-1